[Event "79th UKR-ch Women 2019"]
[Site "Lutsk"]
[Date "2019.12.12"]
[Round "3.2"]
[White "Osmak, Iulija"]
[Black "Babiy, Olga"]
[Result "1-0"]
[ECO "D31"]
[WhiteElo "2388"]
[BlackElo "2258"]
[Annotator "ChessBase"]
[PlyCount "77"]
[EventDate "2019.12.10"]
[EventType "tourn"]
[EventCountry "UKR"]
[SourceTitle "playchess.com"]
[Source "ChessBase"]
[SourceQuality "1"]
[TimeControl "40/5400+30:1800+30"]

1. d4 {[%emt 0:00:00]} d5 {[%emt 0:00:00]} 2. c4 {[%emt 0:00:00]} e6 {[%emt 0:00:00]} 3. Nc3 {[%emt 0:00:00]} a6 {[%emt 0:00:00]} 4. cxd5 {[%emt 0:01:21]} exd5 {[%emt 0:00:00]} 5. Qb3 {[%emt 0:04:18]} c5 {[%emt 0:01:13]} 6. Qxd5 {[%emt 0:01:40]} cxd4 {[%emt 0:00:19]} 7. Qxd8+ {[%emt 0:00:34]} Kxd8 {[%emt 0:00:03]} 8. Nd5 {[%emt 0:03:31]} Be6 {[%emt 0:05:41]} 9. Nf4 {[%emt 0:11:18]} Bf5 {[%emt 0:02:30]} 10. g3 {[%emt 0:11:00]} Nf6 {[%emt 0:14:25]} 11. Bg2 {[%emt 0:16:04]} Nc6 {[%emt 0:00:43]} 12. Nf3 {[%emt 0:01:41]} h6 {[%emt 0:13:27]} 13. O-O {[%emt 0:02:16]} g5 {[%emt 0:00:22]} 14. Nd3 {[%emt 0:00:34]} Bd6 {[%emt 0:11:15]} 15. h4 {[%emt 0:07:44]} g4 {[%emt 0:05:21]} 16. Nd2 {[%emt 0:01:20]} Re8 {[%emt 0:04:19]} 17. Nc4 {[%emt 0:00:11]} Bf8 {[%emt 0:07:57]} 18. Bd2 {[%emt 0:16:10]} Rxe2 {[%emt 0:01:53]} 19. Nf4 {[%emt 0:00:23]} Re8 {[%emt 0:04:07]} 20. Rfd1 {[%emt 0:09:56]} Kc7 {[%emt 0:06:51]} 21. Nd5+ {[%emt 0:02:21]} Nxd5 {[%emt 0:00:44]} 22. Bxd5 {[%emt 0:00:01]} Bc5 {[%emt 0:03:47]} 23. Bf4+ {[%emt 0:02:42]} Kd7 {[%emt 0:02:13]} 24. Rac1 {[%emt 0:01:47]} f6 {[%emt 0:02:02]} 25. Bxc6+ {[%emt 0:01:36]} bxc6 {[%emt 0:01:40]} 26. Ne3 {[%emt 0:00:06]} Rxe3 {[%emt 0:03:34]} 27. Bxe3 {[%emt 0:00:42]} Bb6 {[%emt 0:02:41]} 28. Bxd4 {[%emt 0:00:19]} Bxd4 {[%emt 0:00:13]} 29. Rxd4+ {[%emt 0:00:03]} Ke6 {[%emt 0:00:07]} 30. Rxc6+ {[%emt 0:00:38]} Ke5 {[%emt 0:00:02]} 31. Rf4 {[%emt 0:02:14]} Be4 {[%emt 0:00:55]} 32. Rcxf6 {[%emt 0:01:30]} Rc8 {[%emt 0:00:20]} 33. Rxe4+ {[%emt 0:00:30]} Kxe4 {[%emt 0:01:11]} 34. Rxa6 {[%emt 0:00:27]} h5 {[%emt 0:00:37]} 35. Ra5 {[%emt 0:01:06]} Rc2 {[%emt 0:00:42]} 36. Rxh5 {[%emt 0:00:34]} Rxb2 {[%emt 0:00:09]} 37. Rg5 {[%emt 0:00:51]} Kf3 {[%emt 0:00:04]} 38. Rf5+ {[%emt 0:00:04]} Ke2 {[%emt 0:00:08]} 39. a4 {[%emt 0:00:31]} 1-0

[Event "79th UKR-ch Women 2019"]
[Site "Lutsk"]
[Date "2019.12.12"]
[Round "3.3"]
[White "Berdnyk, Mariia"]
[Black "Doluhanova, Evgeniya"]
[Result "1-0"]
[ECO "A40"]
[WhiteElo "2319"]
[BlackElo "2293"]
[Annotator "ChessBase"]
[PlyCount "95"]
[EventDate "2019.12.10"]
[EventType "tourn"]
[EventCountry "UKR"]
[SourceTitle "playchess.com"]
[Source "ChessBase"]
[SourceQuality "1"]
[TimeControl "40/5400+30:1800+30"]

1. d4 {[%emt 0:00:00]} Nf6 {[%emt 0:00:00]} 2. c4 {[%emt 0:00:00]} e6 {[%emt 0:00:00]} 3. g3 {[%emt 0:00:00]} d5 {[%emt 0:00:00]} 4. Nf3 {[%emt 0:00:00]} Bb4+ {[%emt 0:00:05]} 5. Bd2 {[%emt 0:00:00]} Bd6 {[%emt 0:00:05]} 6. Nc3 {[%emt 0:00:01]} c6 {[%emt 0:00:16]} 7. Qc2 {[%emt 0:00:15]} O-O {[%emt 0:02:06]} 8. e4 {[%emt 0:00:04]} Nxe4 {[%emt 0:08:20]} 9. Nxe4 {[%emt 0:00:06]} dxe4 {[%emt 0:00:03]} 10. Qxe4 {[%emt 0:00:04]} b5 {[%emt 0:27:17]} 11. cxb5 {[%emt 0:18:31]} f5 {[%emt 0:01:17]} 12. Qe2 {[%emt 0:01:01]} cxb5 {[%emt 0:05:02]} 13. Bg2 {[%emt 0:00:20]} a6 {[%emt 0:11:34]} 14. Ng5 {[%emt 0:10:16]} Ra7 {[%emt 0:00:31]} 15. Nxe6 {[%emt 0:01:53]} Bxe6 {[%emt 0:00:38]} 16. Qxe6+ {[%emt 0:00:05]} Kh8 {[%emt 0:00:04]} 17. O-O {[%emt 0:00:36]} Re7 {[%emt 0:00:13]} 18. Qb3 {[%emt 0:07:51]} f4 {[%emt 0:00:54]} 19. Rae1 {[%emt 0:03:01]} Ref7 {[%emt 0:02:33]} 20. Bd5 {[%emt 0:02:18]} Rf6 {[%emt 0:02:23]} 21. Re6 {[%emt 0:02:50]} Nd7 {[%emt 0:13:12]} 22. Rfe1 {[%emt 0:11:10]} fxg3 {[%emt 0:13:53]} 23. fxg3 {[%emt 0:00:06]} Nb6 {[%emt 0:00:27]} 24. Bg2 {[%emt 0:16:03]} Nc4 {[%emt 0:00:29]} 25. R6e2 {[%emt 0:00:59]} Bc7 {[%emt 0:08:17]} 26. Qd3 {[%emt 0:03:27]} Nxd2 {[%emt 0:01:03]} 27. Qxd2 {[%emt 0:00:05]} Bb6 {[%emt 0:00:07]} 28. Re4 {[%emt 0:00:23]} Rd6 {[%emt 0:00:29]} 29. Rd1 {[%emt 0:00:22]} Re8 {[%emt 0:01:52]} 30. Rxe8+ {[%emt 0:05:17]} Qxe8 {[%emt 0:00:06]} 31. Kh1 {[%emt 0:01:08]} Rxd4 {[%emt 0:01:08]} 32. Re1 {[%emt 0:00:45]} Qd8 {[%emt 0:00:48]} 33. Qe2 {[%emt 0:00:49]} h6 {[%emt 0:00:21]} 34. Qh5 {[%emt 0:03:21]} Qf8 {[%emt 0:00:50]} 35. Re8 {[%emt 0:01:08]} Rd1+ {[%emt 0:00:04]} 36. Bf1 {[%emt 0:00:33]} Rxf1+ {[%emt 0:00:14]} 37. Kg2 {[%emt 0:00:03]} Rf2+ {[%emt 0:00:47]} 38. Kh3 {[%emt 0:00:04]} Kh7 {[%emt 0:00:40]} 39. Rxf8 {[%emt 0:00:06]} Rxf8 {[%emt 0:00:03]} 40. Qd5 {[%emt 0:00:00]} Rf6 {[%emt 0:00:00]} 41. Qe4+ {[%emt 0:00:54]} Kg8 {[%emt 0:01:23]} 42. Qa8+ {[%emt 0:00:06]} Kh7 {[%emt 0:00:04]} 43. Qxa6 {[%emt 0:00:41]} Bg1 {[%emt 0:00:20]} 44. Qxb5 {[%emt 0:00:17]} Rf2 {[%emt 0:00:04]} 45. g4 {[%emt 0:02:20]} Rxh2+ {[%emt 0:00:31]} 46. Kg3 {[%emt 0:00:05]} Rd2 {[%emt 0:00:18]} 47. a4 {[%emt 0:00:55]} Bd4 {[%emt 0:02:45]} 48. b3 {[%emt 0:00:35]} 1-0

[Event "79th UKR-ch Women 2019"]
[Site "Lutsk"]
[Date "2019.12.12"]
[Round "3.4"]
[White "Martynkova, Olena"]
[Black "Zhukova, Natalia"]
[Result "0-1"]
[ECO "E10"]
[WhiteElo "2243"]
[BlackElo "2324"]
[Annotator "ChessBase"]
[PlyCount "80"]
[EventDate "2019.12.10"]
[EventType "tourn"]
[EventCountry "UKR"]
[SourceTitle "playchess.com"]
[Source "ChessBase"]
[SourceQuality "1"]
[TimeControl "40/5400+30:1800+30"]

1. d4 {[%emt 0:00:00]} Nf6 {[%emt 0:00:00]} 2. c4 {[%emt 0:00:57]} e6 {[%emt 0:00:18]} 3. Nf3 {[%emt 0:00:38]} d5 {[%emt 0:00:21]} 4. g3 {[%emt 0:00:54]} Bb4+ {[%emt 0:00:55]} 5. Bd2 {[%emt 0:00:55]} Be7 {[%emt 0:00:13]} 6. Bg2 {[%emt 0:00:51]} O-O {[%emt 0:00:21]} 7. O-O {[%emt 0:00:45]} Nbd7 {[%emt 0:00:17]} 8. Bf4 {[%emt 0:01:52]} dxc4 {[%emt 0:07:29]} 9. Nc3 {[%emt 0:04:30]} Nd5 {[%emt 0:27:22]} 10. Nd2 {[%emt 0:11:33]} N7b6 {[%emt 0:05:19]} 11. Nf3 {[%emt 0:19:17]} c5 {[%emt 0:12:09]} 12. Be5 {[%emt 0:19:20]} f6 {[%emt 0:19:02]} 13. dxc5 {[%emt 0:03:53]} Bxc5 {[%emt 0:00:08]} 14. Ne4 {[%emt 0:07:06]} Be7 {[%emt 0:00:58]} 15. Bd4 {[%emt 0:01:26]} e5 {[%emt 0:02:19]} 16. Bc5 {[%emt 0:04:47]} Be6 {[%emt 0:01:38]} 17. b3 {[%emt 0:04:04]} Rc8 {[%emt 0:03:00]} 18. bxc4 {[%emt 0:02:48]} Nxc4 {[%emt 0:02:58]} 19. Bxe7 {[%emt 0:00:33]} Qxe7 {[%emt 0:00:03]} 20. Rc1 {[%emt 0:04:14]} b5 {[%emt 0:04:23]} 21. Qb3 {[%emt 0:01:26]} Na3 {[%emt 0:05:07]} 22. Nh4 {[%emt 0:06:29]} Rxc1 {[%emt 0:06:01]} 23. Rxc1 {[%emt 0:00:07]} Nf4 {[%emt 0:00:23]} 24. Qb2 {[%emt 0:02:20]} Nxg2 {[%emt 0:00:29]} 25. Nxg2 {[%emt 0:00:26]} Rc8 {[%emt 0:00:40]} 26. Rxc8+ {[%emt 0:01:14]} Bxc8 {[%emt 0:00:01]} 27. Ne3 {[%emt 0:00:24]} Be6 {[%emt 0:00:10]} 28. Nc3 {[%emt 0:00:37]} a6 {[%emt 0:00:25]} 29. Ned5 {[%emt 0:00:32]} Qd6 {[%emt 0:00:55]} 30. e4 {[%emt 0:00:30]} Nc4 {[%emt 0:00:31]} 31. Qe2 {[%emt 0:00:27]} Qc5 {[%emt 0:00:41]} 32. Qh5 {[%emt 0:00:34]} Bd7 {[%emt 0:00:41]} 33. Qd1 {[%emt 0:00:26]} Qd4 {[%emt 0:00:33]} 34. Qxd4 exd4 {[%emt 0:00:03]} 35. Ne2 {[%emt 0:01:01]} d3 {[%emt 0:00:06]} 36. Nec3 {[%emt 0:00:25]} a5 {[%emt 0:00:53]} 37. f3 {[%emt 0:00:37]} b4 {[%emt 0:00:10]} 38. Nd1 {[%emt 0:00:14]} Ba4 {[%emt 0:00:14]} 39. N5e3 {[%emt 0:00:39]} Nxe3 {[%emt 0:00:14]} 40. Nxe3 {[%emt 0:00:00]} d2 {[%emt 0:00:00]} 0-1

[Event "79th UKR-ch Women 2019"]
[Site "Lutsk"]
[Date "2019.12.12"]
[Round "3.5"]
[White "Hrebenshchykova, Yelyzaveta"]
[Black "Dolzhykova, Kateryna"]
[Result "1-0"]
[ECO "B33"]
[WhiteElo "2029"]
[BlackElo "2164"]
[Annotator "ChessBase"]
[PlyCount "121"]
[EventDate "2019.12.10"]
[EventType "tourn"]
[EventCountry "UKR"]
[SourceTitle "playchess.com"]
[Source "ChessBase"]
[SourceQuality "1"]
[TimeControl "40/5400+30:1800+30"]

1. e4 {[%emt 0:00:00]} c5 {[%emt 0:00:00]} 2. Nf3 {[%emt 0:00:00]} Nc6 {[%emt 0:00:00]} 3. d4 {[%emt 0:00:00]} cxd4 {[%emt 0:00:00]} 4. Nxd4 {[%emt 0:00:00]} Nf6 {[%emt 0:00:00]} 5. Nc3 {[%emt 0:00:00]} e5 {[%emt 0:00:01]} 6. Ndb5 {[%emt 0:00:14]} d6 {[%emt 0:00:07]} 7. Bg5 {[%emt 0:00:09]} a6 {[%emt 0:00:07]} 8. Na3 {[%emt 0:00:07]} b5 {[%emt 0:00:20]} 9. Nd5 {[%emt 0:00:09]} Be7 {[%emt 0:00:08]} 10. Bxf6 {[%emt 0:00:08]} Bxf6 {[%emt 0:00:03]} 11. c4 {[%emt 0:00:10]} b4 {[%emt 0:00:32]} 12. Nc2 {[%emt 0:00:07]} Rb8 {[%emt 0:02:10]} 13. b3 {[%emt 0:08:07]} O-O {[%emt 0:00:37]} 14. g3 {[%emt 0:02:28]} g6 {[%emt 0:05:52]} 15. Bg2 {[%emt 0:04:28]} Bg7 {[%emt 0:00:28]} 16. Qd2 {[%emt 0:21:11]} a5 {[%emt 0:02:45]} 17. O-O {[%emt 0:00:29]} Be6 {[%emt 0:01:19]} 18. Nde3 {[%emt 0:07:27]} Nd4 {[%emt 0:05:05]} 19. Rad1 {[%emt 0:03:03]} Qb6 {[%emt 0:07:47]} 20. Nxd4 {[%emt 0:04:34]} exd4 {[%emt 0:00:09]} 21. Nc2 {[%emt 0:00:05]} Bg4 {[%emt 0:00:15]} 22. Rde1 {[%emt 0:06:49]} Rbe8 {[%emt 0:08:09]} 23. Kh1 {[%emt 0:09:45]} Bc8 {[%emt 0:07:08]} 24. Rd1 {[%emt 0:07:34]} Bb7 {[%emt 0:00:10]} 25. f3 {[%emt 0:02:02]} f5 {[%emt 0:00:53]} 26. Rfe1 {[%emt 0:04:52]} fxe4 {[%emt 0:01:08]} 27. fxe4 {[%emt 0:00:04]} d3 {[%emt 0:01:35]} 28. Qxd3 {[%emt 0:00:09]} Rf2 {[%emt 0:00:05]} 29. Re2 {[%emt 0:02:42]} Ref8 {[%emt 0:04:43]} 30. Rxf2 {[%emt 0:01:21]} Rxf2 {[%emt 0:02:18]} 31. Rf1 {[%emt 0:03:34]} Rxf1+ {[%emt 0:01:02]} 32. Qxf1 {[%emt 0:00:18]} Qc5 {[%emt 0:00:24]} 33. Qf4 {[%emt 0:04:23]} Be5 {[%emt 0:05:48]} 34. Qe3 {[%emt 0:00:15]} Qc7 {[%emt 0:01:10]} 35. Ne1 {[%emt 0:06:25]} a4 {[%emt 0:01:27]} 36. Nd3 {[%emt 0:01:19]} axb3 {[%emt 0:00:14]} 37. axb3 {[%emt 0:00:14]} Qa5 {[%emt 0:00:36]} 38. Nxe5 {[%emt 0:02:16]} Qa1+ {[%emt 0:00:04]} 39. Qg1 {[%emt 0:00:04]} Qxe5 {[%emt 0:00:08]} 40. Qb1 {[%emt 0:00:00]} Qd4 {[%emt 0:00:00]} 41. h3 {[%emt 0:04:39]} Qe3 {[%emt 0:03:12]} 42. Qg1 {[%emt 0:15:29]} Qxg1+ {[%emt 0:19:33]} 43. Kxg1 {[%emt 0:00:04]} Bc8 {[%emt 0:03:33]} 44. Kf2 {[%emt 0:00:21]} Kf7 {[%emt 0:00:26]} 45. Ke3 {[%emt 0:00:18]} Kf6 {[%emt 0:00:24]} 46. Kd4 {[%emt 0:00:27]} Be6 {[%emt 0:00:44]} 47. h4 {[%emt 0:08:38]} h6 {[%emt 0:04:41]} 48. Bf3 {[%emt 0:00:38]} h5 {[%emt 0:02:06]} 49. Bd1 {[%emt 0:01:57]} Bf7 {[%emt 0:02:19]} 50. Bc2 {[%emt 0:01:41]} Ke6 {[%emt 0:04:04]} 51. Bd3 {[%emt 0:00:59]} Be8 {[%emt 0:02:31]} 52. e5 {[%emt 0:00:50]} dxe5+ {[%emt 0:03:12]} 53. Kc5 {[%emt 0:00:03]} Kf6 {[%emt 0:00:18]} 54. Kxb4 {[%emt 0:02:48]} Bc6 {[%emt 0:00:00]} 55. Kc3 {[%emt 0:00:39]} Bf3 {[%emt 0:00:58]} 56. b4 {[%emt 0:00:04]} e4 {[%emt 0:00:28]} 57. Bf1 {[%emt 0:00:05]} Kf5 {[%emt 0:01:09]} 58. Kd4 {[%emt 0:00:51]} Kg4 {[%emt 0:01:07]} 59. Ke3 {[%emt 0:00:05]} Kxg3 {[%emt 0:00:04]} 60. b5 {[%emt 0:00:23]} Bg4 {[%emt 0:01:04]} 61. c5 1-0

[Event "79th UKR-ch Women 2019"]
[Site "Lutsk"]
[Date "2019.12.13"]
[Round "4.1"]
[White "Tsirulnik, Maritsa"]
[Black "Dolzhykova, Kateryna"]
[Result "1-0"]
[ECO "E62"]
[WhiteElo "2119"]
[BlackElo "2164"]
[Annotator "NA"]
[PlyCount "77"]
[EventDate "2019.12.10"]
[EventType "tourn"]
[EventCountry "UKR"]
[SourceTitle "playchess.com"]
[Source "ChessBase"]
[SourceQuality "1"]
[TimeControl "40/5400+30:1800+30"]

1. d4 {[%emt 0:00:00]} Nf6 {[%emt 0:00:01]} 2. c4 {[%emt 0:00:00]} g6 {[%emt 0:00:32]} 3. g3 {[%emt 0:00:00]} Bg7 {[%emt 0:00:05]} 4. Bg2 {[%emt 0:00:00]} d6 {[%emt 0:00:09]} 5. Nf3 {[%emt 0:00:00]} O-O {[%emt 0:00:07]} 6. O-O {[%emt 0:00:00]} Nc6 {[%emt 0:00:08]} 7. Nc3 {[%emt 0:00:07]} e5 {[%emt 0:00:09]} 8. d5 {[%emt 0:00:07]} Nb8 {[%emt 0:00:57]} 9. Ne1 {[%emt 0:00:17]} a5 {[%emt 0:00:16]} 10. a3 {[%emt 0:00:23]} Nfd7 {[%emt 0:03:29]} 11. Nd3 {[%emt 0:01:57]} Na6 {[%emt 0:00:57]} 12. Rb1 {[%emt 0:03:26]} f5 {[%emt 0:00:49]} 13. e4 {[%emt 0:01:26]} Nac5 {[%emt 0:06:39]} 14. b4 {[%emt 0:07:32]} axb4 {[%emt 0:00:31]} 15. axb4 {[%emt 0:00:04]} Nxe4 {[%emt 0:00:20]} 16. Nxe4 {[%emt 0:00:07]} fxe4 {[%emt 0:00:04]} 17. Bxe4 {[%emt 0:00:05]} Nf6 {[%emt 0:00:16]} 18. Bg2 {[%emt 0:00:08]} Bf5 {[%emt 0:01:32]} 19. Rb3 {[%emt 0:04:52]} Qd7 {[%emt 0:02:12]} 20. f3 {[%emt 0:13:52]} Ra1 {[%emt 0:02:42]} 21. b5 {[%emt 0:17:39]} e4 {[%emt 0:05:04]} 22. Nf4 {[%emt 0:04:53]} g5 {[%emt 0:10:35]} 23. Ne2 {[%emt 0:17:27]} exf3 {[%emt 0:00:33]} 24. Bxf3 {[%emt 0:00:07]} Ng4 {[%emt 0:01:27]} 25. Qd2 {[%emt 0:02:27]} Ne5 {[%emt 0:05:08]} 26. Qxg5 {[%emt 0:04:00]} Bd3 {[%emt 0:05:30]} 27. Rxd3 {[%emt 0:10:37]} Nxd3 {[%emt 0:00:03]} 28. Bf4 {[%emt 0:00:34]} Rxf1+ {[%emt 0:05:43]} 29. Kxf1 {[%emt 0:00:02]} Qh3+ {[%emt 0:05:29]} 30. Kg1 {[%emt 0:00:06]} Ne1 {[%emt 0:01:32]} 31. Bh1 {[%emt 0:01:46]} Re8 {[%emt 0:03:14]} 32. Nd4 {[%emt 0:00:51]} Kh8 {[%emt 0:16:52]} 33. Ne6 {[%emt 0:00:22]} Ba1 {[%emt 0:10:14]} 34. Bd2 {[%emt 0:01:38]} h6 {[%emt 0:06:59]} 35. Qe3 {[%emt 0:03:09]} Nc2 {[%emt 0:01:12]} 36. Bc3+ {[%emt 0:00:44]} Kg8 {[%emt 0:00:08]} 37. Qd3 {[%emt 0:00:22]} Rxe6 {[%emt 0:05:58]} 38. dxe6 {[%emt 0:00:06]} Bxc3 {[%emt 0:00:11]} 39. Qg6+ {[%emt 0:01:43]} 1-0

[Event "79th UKR-ch Women 2019"]
[Site "Lutsk"]
[Date "2019.12.13"]
[Round "4.2"]
[White "Zhukova, Natalia"]
[Black "Hrebenshchykova, Yelyzaveta"]
[Result "1-0"]
[ECO "E81"]
[WhiteElo "2324"]
[BlackElo "2029"]
[Annotator "NA"]
[PlyCount "73"]
[EventDate "2019.12.10"]
[EventType "tourn"]
[EventCountry "UKR"]
[SourceTitle "playchess.com"]
[Source "ChessBase"]
[SourceQuality "1"]
[TimeControl "40/5400+30:1800+30"]

1. d4 {[%emt 0:00:00]} Nf6 {[%emt 0:00:00]} 2. c4 {[%emt 0:00:00]} g6 {[%emt 0:00:00]} 3. Nc3 {[%emt 0:00:00]} Bg7 {[%emt 0:00:00]} 4. e4 {[%emt 0:00:13]} d6 {[%emt 0:00:00]} 5. f3 {[%emt 0:00:20]} O-O {[%emt 0:00:30]} 6. Bg5 {[%emt 0:00:11]} c5 {[%emt 0:01:02]} 7. d5 {[%emt 0:00:09]} h6 {[%emt 0:00:23]} 8. Be3 {[%emt 0:00:10]} e6 {[%emt 0:00:32]} 9. Qd2 {[%emt 0:00:21]} exd5 {[%emt 0:00:43]} 10. cxd5 {[%emt 0:00:08]} a6 {[%emt 0:08:11]} 11. a4 {[%emt 0:00:10]} Re8 {[%emt 0:00:07]} 12. Nge2 {[%emt 0:00:28]} h5 {[%emt 0:08:32]} 13. Nd1 {[%emt 0:06:28]} Nbd7 {[%emt 0:12:20]} 14. Nec3 {[%emt 0:00:48]} Qa5 {[%emt 0:12:29]} 15. Ra3 {[%emt 0:01:44]} Ne5 {[%emt 0:07:42]} 16. Be2 {[%emt 0:07:06]} Nfd7 {[%emt 0:10:43]} 17. O-O {[%emt 0:10:28]} c4 {[%emt 0:05:46]} 18. Nf2 {[%emt 0:05:28]} Nc5 {[%emt 0:02:41]} 19. Nb1 {[%emt 0:14:27]} Qxd2 {[%emt 0:11:48]} 20. Nxd2 {[%emt 0:00:09]} Bd7 {[%emt 0:00:03]} 21. a5 {[%emt 0:18:13]} Bb5 {[%emt 0:02:26]} 22. Bxc5 {[%emt 0:04:59]} dxc5 {[%emt 0:00:04]} 23. f4 {[%emt 0:00:07]} Ng4 {[%emt 0:11:43]} 24. e5 {[%emt 0:10:52]} c3 {[%emt 0:03:30]} 25. Bxb5 {[%emt 0:00:31]} axb5 {[%emt 0:00:05]} 26. Rxc3 {[%emt 0:06:09]} Rad8 {[%emt 0:00:19]} 27. Nxg4 {[%emt 0:08:29]} Rxd5 {[%emt 0:00:19]} 28. Ne4 {[%emt 0:00:02]} hxg4 {[%emt 0:00:07]} 29. Rxc5 {[%emt 0:00:18]} Rxc5 {[%emt 0:01:02]} 30. Nxc5 {[%emt 0:00:02]} f6 {[%emt 0:00:49]} 31. Nxb7 {[%emt 0:03:31]} fxe5 {[%emt 0:00:10]} 32. Nd6 {[%emt 0:01:01]} Ra8 {[%emt 0:00:38]} 33. b4 {[%emt 0:00:27]} exf4 {[%emt 0:01:03]} 34. Rxf4 {[%emt 0:00:29]} Bf8 {[%emt 0:00:36]} 35. Nxb5 {[%emt 0:01:14]} Rb8 {[%emt 0:00:19]} 36. a6 {[%emt 0:00:32]} Ra8 {[%emt 0:00:44]} 37. a7 {[%emt 0:00:48]} 1-0

[Event "79th UKR-ch Women 2019"]
[Site "Lutsk"]
[Date "2019.12.13"]
[Round "4.3"]
[White "Doluhanova, Evgeniya"]
[Black "Martynkova, Olena"]
[Result "0-1"]
[ECO "C50"]
[WhiteElo "2293"]
[BlackElo "2243"]
[Annotator "NA"]
[PlyCount "88"]
[EventDate "2019.12.10"]
[EventType "tourn"]
[EventCountry "UKR"]
[SourceTitle "playchess.com"]
[Source "ChessBase"]
[SourceQuality "1"]
[TimeControl "40/5400+30:1800+30"]

1. e4 {[%emt 0:00:00]} e5 {[%emt 0:00:00]} 2. Nf3 {[%emt 0:00:00]} Nc6 {[%emt 0:00:10]} 3. Bc4 {[%emt 0:00:04]} Bc5 {[%emt 0:00:47]} 4. d3 {[%emt 0:00:15]} Nf6 {[%emt 0:01:51]} 5. h3 {[%emt 0:02:37]} h6 {[%emt 0:07:50]} 6. O-O {[%emt 0:01:05]} d6 {[%emt 0:06:24]} 7. c3 {[%emt 0:00:52]} Bb6 {[%emt 0:03:03]} 8. a4 {[%emt 0:01:48]} a6 {[%emt 0:04:57]} 9. Re1 {[%emt 0:01:45]} g5 {[%emt 0:15:55]} 10. Nh2 {[%emt 0:18:05]} g4 {[%emt 0:10:09]} 11. hxg4 {[%emt 0:03:00]} Rg8 {[%emt 0:01:17]} 12. Qf3 {[%emt 0:19:00]} Qe7 {[%emt 0:03:47]} 13. Be3 {[%emt 0:02:33]} Bxe3 {[%emt 0:07:03]} 14. Qxe3 {[%emt 0:06:21]} Nxg4 {[%emt 0:05:32]} 15. Nxg4 {[%emt 0:09:37]} Bxg4 {[%emt 0:00:55]} 16. b4 {[%emt 0:01:07]} Nd8 {[%emt 0:08:08]} 17. Nd2 {[%emt 0:05:07]} Ne6 {[%emt 0:02:38]} 18. Bxe6 {[%emt 0:04:07]} Bxe6 {[%emt 0:03:34]} 19. b5 {[%emt 0:03:37]} a5 {[%emt 0:05:32]} 20. d4 {[%emt 0:05:07]} Qg5 {[%emt 0:03:37]} 21. Qxg5 {[%emt 0:01:07]} hxg5 {[%emt 0:00:06]} 22. d5 {[%emt 0:02:17]} Bd7 {[%emt 0:00:43]} 23. b6 {[%emt 0:07:18]} Ke7 {[%emt 0:01:32]} 24. Reb1 {[%emt 0:00:57]} c6 {[%emt 0:02:38]} 25. c4 {[%emt 0:02:24]} c5 {[%emt 0:00:52]} 26. f3 {[%emt 0:00:31]} g4 {[%emt 0:00:58]} 27. Kf2 {[%emt 0:00:21]} Rh8 {[%emt 0:02:53]} 28. fxg4 {[%emt 0:02:19]} Bxg4 {[%emt 0:00:12]} 29. Ra3 {[%emt 0:00:24]} Bd7 {[%emt 0:00:24]} 30. Nf3 {[%emt 0:00:36]} Rag8 {[%emt 0:00:46]} 31. Nd2 {[%emt 0:00:23]} Rh2 {[%emt 0:00:29]} 32. Rg3 {[%emt 0:00:26]} Rxg3 {[%emt 0:00:33]} 33. Kxg3 {[%emt 0:00:03]} Rh8 {[%emt 0:00:07]} 34. Ra1 {[%emt 0:01:10]} Ra8 {[%emt 0:00:44]} 35. Nb3 {[%emt 0:00:04]} Ra6 {[%emt 0:00:15]} 36. Kf2 {[%emt 0:00:34]} Rxb6 {[%emt 0:01:01]} 37. Nxa5 {[%emt 0:00:04]} Ra6 {[%emt 0:00:36]} 38. Nxb7 {[%emt 0:01:12]} Ra7 {[%emt 0:00:29]} 39. Rb1 {[%emt 0:00:11]} Bc8 {[%emt 0:00:26]} 40. Nxd6 {[%emt 0:00:00]} Kxd6 {[%emt 0:00:00]} 41. Rb6+ {[%emt 0:00:15]} Ke7 {[%emt 0:01:03]} 42. Rc6 {[%emt 0:00:14]} Bd7 {[%emt 0:01:23]} 43. d6+ {[%emt 0:00:28]} Ke6 {[%emt 0:00:43]} 44. Rxc5 {[%emt 0:00:08]} Rxa4 {[%emt 0:01:02]} 0-1

[Event "79th UKR-ch Women 2019"]
[Site "Lutsk"]
[Date "2019.12.13"]
[Round "4.4"]
[White "Babiy, Olga"]
[Black "Berdnyk, Mariia"]
[Result "1-0"]
[ECO "B09"]
[WhiteElo "2258"]
[BlackElo "2319"]
[Annotator "NA"]
[PlyCount "73"]
[EventDate "2019.12.10"]
[EventType "tourn"]
[EventCountry "UKR"]
[SourceTitle "playchess.com"]
[Source "ChessBase"]
[SourceQuality "1"]
[TimeControl "40/5400+30:1800+30"]

1. e4 {[%emt 0:00:00]} g6 {[%emt 0:00:00]} 2. d4 {[%emt 0:00:00]} Bg7 {[%emt 0:00:00]} 3. Nc3 {[%emt 0:00:02]} d6 {[%emt 0:00:00]} 4. f4 {[%emt 0:00:21]} Nf6 {[%emt 0:00:00]} 5. Nf3 {[%emt 0:00:08]} c5 {[%emt 0:00:00]} 6. dxc5 {[%emt 0:02:54]} Qa5 {[%emt 0:00:00]} 7. Bd3 {[%emt 0:00:15]} Qxc5 {[%emt 0:00:06]} 8. Qe2 {[%emt 0:01:09]} O-O {[%emt 0:00:05]} 9. a3 {[%emt 0:04:57]} Nc6 {[%emt 0:05:31]} 10. Be3 {[%emt 0:05:37]} Qa5 {[%emt 0:00:10]} 11. O-O {[%emt 0:04:26]} Ng4 {[%emt 0:10:22]} 12. Bd2 {[%emt 0:07:13]} Nd4 {[%emt 0:02:32]} 13. Nxd4 {[%emt 0:05:43]} Bxd4+ {[%emt 0:00:05]} 14. Kh1 {[%emt 0:00:02]} Qh5 {[%emt 0:05:53]} 15. h3 {[%emt 0:02:31]} Nf6 {[%emt 0:05:38]} 16. Qxh5 {[%emt 0:03:29]} Nxh5 {[%emt 0:00:05]} 17. Kh2 {[%emt 0:00:10]} f5 {[%emt 0:06:04]} 18. Rae1 {[%emt 0:08:06]} fxe4 {[%emt 0:05:54]} 19. Rxe4 {[%emt 0:04:36]} e5 {[%emt 0:00:24]} 20. Bc4+ {[%emt 0:04:35]} Kg7 {[%emt 0:05:49]} 21. fxe5 {[%emt 0:13:32]} Rxf1 {[%emt 0:01:49]} 22. Rxd4 {[%emt 0:02:06]} dxe5 {[%emt 0:05:20]} 23. Rd8 {[%emt 0:00:08]} Be6 {[%emt 0:01:04]} 24. Rxa8 {[%emt 0:00:50]} Bxc4 {[%emt 0:00:07]} 25. Rxa7 {[%emt 0:02:00]} Rf7 {[%emt 0:01:06]} 26. Be3 {[%emt 0:02:31]} Nf6 {[%emt 0:04:43]} 27. Ra5 {[%emt 0:00:52]} Re7 {[%emt 0:07:52]} 28. Rc5 {[%emt 0:01:57]} Bf7 {[%emt 0:00:52]} 29. a4 {[%emt 0:02:27]} Be8 {[%emt 0:06:02]} 30. Bg5 {[%emt 0:05:50]} Bc6 {[%emt 0:03:14]} 31. b4 {[%emt 0:01:35]} Re8 {[%emt 0:04:47]} 32. Bxf6+ {[%emt 0:02:47]} Kxf6 {[%emt 0:00:01]} 33. b5 {[%emt 0:00:07]} Bd7 {[%emt 0:00:32]} 34. Ne4+ {[%emt 0:00:45]} Ke6 {[%emt 0:00:12]} 35. Rc7 {[%emt 0:01:33]} Bc8 {[%emt 0:01:28]} 36. c4 {[%emt 0:02:08]} Rf8 {[%emt 0:02:20]} 37. a5 {[%emt 0:01:14] Kd5} 1-0